[Event "Titled Tuesday Blitz July 05 Early 2022"]
[White "Svane, Frederik"]
[Black "Cherniaiev, Tykhon"]
[WhiteFideId "12923044"]
[BlackFideId "14182360"]
[WhiteElo "2459"]
[BlackElo "2263"]
[Result "1-0"]
[Round "05"]
[TimeControl "180+1"]
[Date "2022.07.05"]
[WhiteClock "0:00:13"]
[BlackClock "0:00:05"]

1. e4 {[%clk 0:03:00]}  c5 {[%clk 0:02:58]} 2. Nf3 {[%clk 0:03:00]}  e6 {[%clk 0:02:58]} 3. d4 {[%clk 0:02:59]}  cxd4 {[%clk 0:02:59]} 4. Nxd4 {[%clk 0:03:00]}  Nc6 {[%clk 0:02:59]} 5. Nc3 {[%clk 0:03:00]}  Qc7 {[%clk 0:02:59]} 6. Be3 {[%clk 0:02:59]}  a6 {[%clk 0:03:00]} 7. Qf3 {[%clk 0:03:00]}  Nf6 {[%clk 0:02:52]} 8. O-O-O {[%clk 0:02:57]}  b5 {[%clk 0:02:51]} 9. Qg3 {[%clk 0:02:47]}  Qxg3 {[%clk 0:02:49]} 10. hxg3 {[%clk 0:02:47]}  Bb7 {[%clk 0:02:33]} 11. Nxc6 {[%clk 0:02:45]}  Bxc6 {[%clk 0:02:28]} 12. f3 {[%clk 0:02:45]}  d5 {[%clk 0:02:26]} 13. exd5 {[%clk 0:02:37]}  Nxd5 {[%clk 0:02:27]} 14. Nxd5 {[%clk 0:02:37]}  Bxd5 {[%clk 0:02:27]} 15. Kb1 {[%clk 0:02:38]}  Be7 {[%clk 0:02:21]} 16. Bd3 {[%clk 0:02:37]}  h6 {[%clk 0:02:21]} 17. g4 {[%clk 0:02:36]}  Rd8 {[%clk 0:02:11]} 18. a4 {[%clk 0:02:21]}  bxa4 {[%clk 0:02:09]} 19. Bxa6 {[%clk 0:02:21]}  a3 {[%clk 0:02:06]} 20. c4 {[%clk 0:02:21]}  Bc6 {[%clk 0:01:57]} 21. Rxd8+ {[%clk 0:02:20]}  Kxd8 {[%clk 0:01:58]} 22. Bb6+ {[%clk 0:02:20]}  Ke8 {[%clk 0:01:59]} 23. Rd1 {[%clk 0:02:08]}  f6 {[%clk 0:01:48]} 24. Bb5 {[%clk 0:02:07]}  Bxb5 {[%clk 0:01:47]} 25. cxb5 {[%clk 0:02:08]}  Kf7 {[%clk 0:01:22]} 26. Bc7 {[%clk 0:01:55]}  axb2 {[%clk 0:01:16]} 27. b6 {[%clk 0:01:47]}  Bc5 {[%clk 0:01:15]} 28. Rd7+ {[%clk 0:01:31]}  Kg6 {[%clk 0:01:11]} 29. Kxb2 {[%clk 0:01:16]}  h5 {[%clk 0:00:55]} 30. gxh5+ {[%clk 0:01:08]}  Rxh5 {[%clk 0:00:54]} 31. Kc3 {[%clk 0:01:04]}  Rh1 {[%clk 0:00:44]} 32. b7 {[%clk 0:01:01]}  Ba7 {[%clk 0:00:42]} 33. b8=Q {[%clk 0:00:46]}  Bxb8 {[%clk 0:00:41]} 34. Bxb8 {[%clk 0:00:47]}  Rc1+ {[%clk 0:00:38]} 35. Kb2 {[%clk 0:00:47]}  Rf1 {[%clk 0:00:35]} 36. Kc2 {[%clk 0:00:43]}  Ra1 {[%clk 0:00:31]} 37. Rd2 {[%clk 0:00:40]}  Kh5 {[%clk 0:00:30]} 38. Kd3 {[%clk 0:00:37]}  g5 {[%clk 0:00:30]} 39. g4+ {[%clk 0:00:35]}  Kg6 {[%clk 0:00:31]} 40. Ke2 {[%clk 0:00:35]}  f5 {[%clk 0:00:30]} 41. Be5 {[%clk 0:00:27]}  Ra4 {[%clk 0:00:28]} 42. Rd4 {[%clk 0:00:20]}  Ra2+ {[%clk 0:00:25]} 43. Ke3 {[%clk 0:00:20]}  Ra3+ {[%clk 0:00:19]} 44. Kf2 {[%clk 0:00:20]}  Ra2+ {[%clk 0:00:20]} 45. Kg3 {[%clk 0:00:20]}  Re2 {[%clk 0:00:20]} 46. Bc7 {[%clk 0:00:16]}  Rc2 {[%clk 0:00:19]} 47. Rd7 {[%clk 0:00:15]}  Kf6 {[%clk 0:00:17]} 48. Bd8+ {[%clk 0:00:15]}  Kg6 {[%clk 0:00:17]} 49. Re7 {[%clk 0:00:14]}  f4+ {[%clk 0:00:11]} 50. Kh3 {[%clk 0:00:14]}  Rf2 {[%clk 0:00:08]} 51. Rxe6+ {[%clk 0:00:14]}  Kf7 {[%clk 0:00:08]} 52. Re5 {[%clk 0:00:13]}  Rxf3+ {[%clk 0:00:08]} 53. Kh2 {[%clk 0:00:14]}  Rg3 {[%clk 0:00:04]} 54. Rxg5 {[%clk 0:00:14]}  Rd3 {[%clk 0:00:04]} 55. Bc7 {[%clk 0:00:13]}  Rd4 {[%clk 0:00:02]} 56. Rf5+ {[%clk 0:00:13]}  Kg6 {[%clk 0:00:03]} 57. Bxf4 {[%clk 0:00:13]}  Rd3 {[%clk 0:00:02]} 58. Bg3 {[%clk 0:00:14]}  Rd4 {[%clk 0:00:02]} 59. Kh3 {[%clk 0:00:14]}  Rd1 {[%clk 0:00:03]} 60. Re5 {[%clk 0:00:15]}  Rh1+ {[%clk 0:00:03]} 61. Kg2 {[%clk 0:00:15]}  Rc1 {[%clk 0:00:03]} 62. Bf4 {[%clk 0:00:16]}  Rc2+ {[%clk 0:00:03]} 63. Kg3 {[%clk 0:00:16]}  Rc4 {[%clk 0:00:04]} 64. Re6+ {[%clk 0:00:16]}  Kf7 {[%clk 0:00:03]} 65. Ra6 {[%clk 0:00:16]}  Rc5 {[%clk 0:00:04]} 66. g5 {[%clk 0:00:15]}  Kg7 {[%clk 0:00:04]} 67. Kg4 {[%clk 0:00:15]}  Rc2 {[%clk 0:00:05]} 68. Be5+ {[%clk 0:00:15]}  Kh7 {[%clk 0:00:04]} 69. Rh6+ {[%clk 0:00:14]}  Kg8 {[%clk 0:00:04]} 70. g6 {[%clk 0:00:14]}  Rg2+ {[%clk 0:00:04]} 71. Kf3 {[%clk 0:00:14]}  Rxg6 {[%clk 0:00:01]} 72. Rxg6+ {[%clk 0:00:13]}  Kh7 {[%clk 0:00:02]} 73. Rg5 {[%clk 0:00:12]}  Kh6 {[%clk 0:00:03]} 74. Kg4 {[%clk 0:00:13]}  Kh7 {[%clk 0:00:03]} 75. Kf5 {[%clk 0:00:13]}  Kh6 {[%clk 0:00:04]} 76. Kf6 {[%clk 0:00:12]}  Kh7 {[%clk 0:00:05]} 77. Rg6 {[%clk 0:00:11]}  Kh8 {[%clk 0:00:05]} 78. Rh6+ {[%clk 0:00:11]}  Kg8 {[%clk 0:00:05]} 79. Bf4 {[%clk 0:00:12]}  Kf8 {[%clk 0:00:05]} 80. Rh8# {[%clk 0:00:13]} 1-0


[Site "https://www.chess.com"]

[Event "Titled Tuesday Blitz July 05 Early 2022"]
[White "Svane, Rasmus"]
[Black "Korchmar, Vasiliy"]
[WhiteFideId "4657101"]
[BlackFideId "24131750"]
[WhiteElo "2674"]
[BlackElo "2370"]
[Result "1-0"]
[Round "05"]
[TimeControl "180+1"]
[Date "2022.07.05"]
[WhiteClock "0:00:38"]
[BlackClock "0:00:53"]

1. Nf3 {[%clk 0:03:00]}  c5 {[%clk 0:02:55]} 2. c4 {[%clk 0:02:59]}  Nc6 {[%clk 0:02:54]} 3. Nc3 {[%clk 0:02:59]}  g6 {[%clk 0:02:52]} 4. e3 {[%clk 0:03:00]}  Nf6 {[%clk 0:02:51]} 5. d4 {[%clk 0:03:00]}  cxd4 {[%clk 0:02:52]} 6. exd4 {[%clk 0:03:01]}  d5 {[%clk 0:02:52]} 7. cxd5 {[%clk 0:03:02]}  Nxd5 {[%clk 0:02:52]} 8. Qb3 {[%clk 0:03:03]}  Nxc3 {[%clk 0:02:52]} 9. Bc4 {[%clk 0:03:02]}  e6 {[%clk 0:02:52]} 10. bxc3 {[%clk 0:03:03]}  Bd7 {[%clk 0:02:51]} 11. Bd3 {[%clk 0:03:02]}  Bg7 {[%clk 0:02:50]} 12. Ba3 {[%clk 0:03:02]}  Na5 {[%clk 0:02:49]} 13. Qc2 {[%clk 0:03:01]}  Bf8 {[%clk 0:02:47]} 14. Bxf8 {[%clk 0:03:01]}  Kxf8 {[%clk 0:02:48]} 15. O-O {[%clk 0:02:51]}  Kg7 {[%clk 0:02:46]} 16. Rfe1 {[%clk 0:02:50]}  Rc8 {[%clk 0:02:44]} 17. Re3 {[%clk 0:02:46]}  Bc6 {[%clk 0:02:32]} 18. Ne5 {[%clk 0:02:41]}  Bd5 {[%clk 0:02:30]} 19. Rae1 {[%clk 0:02:10]}  Nc4 {[%clk 0:02:24]} 20. Bxc4 {[%clk 0:02:05]}  Bxc4 {[%clk 0:02:25]} 21. Qd2 {[%clk 0:01:56]}  Bd5 {[%clk 0:02:15]} 22. h4 {[%clk 0:01:24]}  h5 {[%clk 0:02:13]} 23. Qd3 {[%clk 0:01:08]}  Qxh4 {[%clk 0:01:26]} 24. c4 {[%clk 0:01:08]}  Bc6 {[%clk 0:01:26]} 25. d5 {[%clk 0:00:58]}  exd5 {[%clk 0:01:07]} 26. Rf3 {[%clk 0:00:44]}  Rhf8 {[%clk 0:00:57]} 27. Rxf7+ {[%clk 0:00:43]}  Kh8 {[%clk 0:00:53]} 28. Qxg6 {[%clk 0:00:38]} 1-0


[Site "https://www.chess.com"]

[Event "Titled Tuesday Blitz July 05 Early 2022"]
[White "Tabatabaei, M. Amin"]
[Black "Barp, Alberto"]
[WhiteFideId "12521213"]
[BlackFideId "872555"]
[WhiteElo "2544"]
[BlackElo "2229"]
[Result "0-1"]
[Round "05"]
[TimeControl "180+1"]
[Date "2022.07.05"]
[WhiteClock "0:00:03"]
[BlackClock "0:00:07"]

1. d4 {[%clk 0:03:00]}  Nf6 {[%clk 0:02:59]} 2. Nf3 {[%clk 0:03:01]}  d5 {[%clk 0:02:57]} 3. c3 {[%clk 0:03:01]}  e6 {[%clk 0:02:53]} 4. Bf4 {[%clk 0:02:58]}  c5 {[%clk 0:02:49]} 5. e3 {[%clk 0:02:59]}  Nc6 {[%clk 0:02:49]} 6. Nbd2 {[%clk 0:02:51]}  cxd4 {[%clk 0:02:45]} 7. exd4 {[%clk 0:02:51]}  Nh5 {[%clk 0:02:45]} 8. Be3 {[%clk 0:02:51]}  Bd6 {[%clk 0:02:44]} 9. Bd3 {[%clk 0:02:51]}  Nf4 {[%clk 0:02:44]} 10. Bxf4 {[%clk 0:02:52]}  Bxf4 {[%clk 0:02:44]} 11. O-O {[%clk 0:02:53]}  O-O {[%clk 0:02:41]} 12. Re1 {[%clk 0:02:53]}  Qc7 {[%clk 0:02:34]} 13. Nf1 {[%clk 0:02:50]}  Re8 {[%clk 0:02:16]} 14. g3 {[%clk 0:02:47]}  Bd6 {[%clk 0:02:15]} 15. Ne3 {[%clk 0:02:48]}  Bd7 {[%clk 0:02:04]} 16. Bxh7+ {[%clk 0:02:37]}  Kxh7 {[%clk 0:02:02]} 17. Ng5+ {[%clk 0:02:38]}  Kg6 {[%clk 0:01:52]} 18. h4 {[%clk 0:02:21]}  f5 {[%clk 0:01:41]} 19. f4 {[%clk 0:01:58]}  Ne7 {[%clk 0:01:26]} 20. h5+ {[%clk 0:01:46]}  Kh6 {[%clk 0:01:20]} 21. Qc2 {[%clk 0:01:25]}  g6 {[%clk 0:00:45]} 22. hxg6 {[%clk 0:01:19]}  Kxg6 {[%clk 0:00:45]} 23. Ng2 {[%clk 0:01:00]}  Ng8 {[%clk 0:00:38]} 24. g4 {[%clk 0:00:38]}  Nf6 {[%clk 0:00:20]} 25. gxf5+ {[%clk 0:00:24]}  exf5 {[%clk 0:00:19]} 26. Nh4+ {[%clk 0:00:25]}  Kg7 {[%clk 0:00:19]} 27. Nxf5+ {[%clk 0:00:25]}  Bxf5 {[%clk 0:00:20]} 28. Qxf5 {[%clk 0:00:26]}  Qd7 {[%clk 0:00:15]} 29. Ne6+ {[%clk 0:00:19]}  Kf7 {[%clk 0:00:16]} 30. Ng5+ {[%clk 0:00:15]}  Kg7 {[%clk 0:00:16]} 31. Re6 {[%clk 0:00:11]}  Rxe6 {[%clk 0:00:13]} 32. Nxe6+ {[%clk 0:00:12]}  Kf7 {[%clk 0:00:14]} 33. Ng5+ {[%clk 0:00:12]}  Kg7 {[%clk 0:00:14]} 34. Ne6+ {[%clk 0:00:13]}  Kf7 {[%clk 0:00:14]} 35. Re1 {[%clk 0:00:12]}  Rg8+ {[%clk 0:00:03]} 36. Ng5+ {[%clk 0:00:05]}  Kg7 {[%clk 0:00:03]} 37. Re6 {[%clk 0:00:05]}  Rf8 {[%clk 0:00:01]} 38. Kg2 {[%clk 0:00:05]}  Qd8 {[%clk 0:00:01]} 39. Re3 {[%clk 0:00:01]}  Qd7 {[%clk 0:00:01]} 40. Ne6+ {[%clk 0:00:02]}  Kf7 {[%clk 0:00:01]} 41. Kf3 {[%clk 0:00:01]}  Re8 {[%clk 0:00:01]} 42. Ng5+ {[%clk 0:00:02]}  Kg7 {[%clk 0:00:02]} 43. Ne6+ {[%clk 0:00:02]}  Kf7 {[%clk 0:00:02]} 44. Ng5+ {[%clk 0:00:01]}  Kg7 {[%clk 0:00:02]} 45. Re6 {[%clk 0:00:02]}  Rxe6 {[%clk 0:00:02]} 46. Nxe6+ {[%clk 0:00:03]}  Kf7 {[%clk 0:00:03]} 47. Ng5+ {[%clk 0:00:03]}  Kg7 {[%clk 0:00:04]} 48. Ne6+ {[%clk 0:00:04]}  Kf7 {[%clk 0:00:04]} 49. Ng5+ {[%clk 0:00:04]}  Ke7 {[%clk 0:00:05]} 50. Qxd7+ {[%clk 0:00:02]}  Kxd7 {[%clk 0:00:06]} 51. f5 {[%clk 0:00:02]}  b5 {[%clk 0:00:04]} 52. Ne6 {[%clk 0:00:02]}  Ne4 {[%clk 0:00:04]} 53. Ng7 {[%clk 0:00:01]}  Ke7 {[%clk 0:00:04]} 54. Nh5 {[%clk 0:00:01]}  Kf7 {[%clk 0:00:04]} 55. Kg4 {[%clk 0:00:02]}  Nf6+ {[%clk 0:00:04]} 56. Nxf6 {[%clk 0:00:01]}  Kxf6 {[%clk 0:00:05]} 57. b3 {[%clk 0:00:02]}  a5 {[%clk 0:00:05]} 58. a4 {[%clk 0:00:02]}  bxa4 {[%clk 0:00:05]} 59. bxa4 {[%clk 0:00:02]}  Bc7 {[%clk 0:00:06]} 60. Kf3 {[%clk 0:00:02]}  Kxf5 {[%clk 0:00:06]} 61. Ke3 {[%clk 0:00:03]}  Bf4+ {[%clk 0:00:06]} 62. Kd3 {[%clk 0:00:03]}  Bd6 {[%clk 0:00:06]} 63. c4 {[%clk 0:00:04]}  Ke6 {[%clk 0:00:04]} 64. c5 {[%clk 0:00:03]}  Bh2 {[%clk 0:00:04]} 65. Ke3 {[%clk 0:00:03]}  Bg1+ {[%clk 0:00:04]} 66. Kd3 {[%clk 0:00:03]}  Bh2 {[%clk 0:00:04]} 67. Ke3 {[%clk 0:00:04]}  Bc7 {[%clk 0:00:05]} 68. Kf3 {[%clk 0:00:04]}  Kf5 {[%clk 0:00:06]} 69. Ke3 {[%clk 0:00:04]}  Kg4 {[%clk 0:00:06]} 70. c6 {[%clk 0:00:03]}  Kf5 {[%clk 0:00:07]} 0-1


[Site "https://www.chess.com"]

[Event "Titled Tuesday Blitz July 05 Early 2022"]
[White "Tari, Aryan"]
[Black "Dubov, Daniil"]
[WhiteFideId "1510045"]
[BlackFideId "24126055"]
[WhiteElo "2612"]
[BlackElo "2791"]
[Result "1/2-1/2"]
[Round "05"]
[TimeControl "180+1"]
[Date "2022.07.05"]
[WhiteClock "0:01:07"]
[BlackClock "0:00:24"]

1. e4 {[%clk 0:03:00]}  e5 {[%clk 0:02:44]} 2. Nf3 {[%clk 0:03:00]}  Nc6 {[%clk 0:02:44]} 3. Nc3 {[%clk 0:02:57]}  Nf6 {[%clk 0:02:43]} 4. a3 {[%clk 0:02:58]}  d5 {[%clk 0:02:42]} 5. Bb5 {[%clk 0:02:57]}  Nxe4 {[%clk 0:02:39]} 6. Qe2 {[%clk 0:02:57]}  Qd6 {[%clk 0:02:35]} 7. Nxe4 {[%clk 0:02:57]}  dxe4 {[%clk 0:02:35]} 8. Qxe4 {[%clk 0:02:58]}  Bd7 {[%clk 0:02:34]} 9. d4 {[%clk 0:02:57]}  O-O-O {[%clk 0:01:51]} 10. dxe5 {[%clk 0:02:57]}  Nxe5 {[%clk 0:01:50]} 11. Bxd7+ {[%clk 0:02:58]}  Qxd7 {[%clk 0:01:20]} 12. O-O {[%clk 0:02:59]}  Nxf3+ {[%clk 0:01:20]} 13. Qxf3 {[%clk 0:03:00]}  Qd5 {[%clk 0:01:18]} 14. Qg3 {[%clk 0:02:38]}  Bd6 {[%clk 0:01:15]} 15. Bf4 {[%clk 0:02:39]}  Bxf4 {[%clk 0:01:12]} 16. Qxf4 {[%clk 0:02:40]}  Rhe8 {[%clk 0:01:11]} 17. Rae1 {[%clk 0:02:32]}  g6 {[%clk 0:00:46]} 18. h4 {[%clk 0:02:27]}  h5 {[%clk 0:00:44]} 19. g3 {[%clk 0:02:02]}  a6 {[%clk 0:00:39]} 20. a4 {[%clk 0:01:30]}  a5 {[%clk 0:00:34]} 21. b3 {[%clk 0:01:30]}  b6 {[%clk 0:00:34]} 22. Re3 {[%clk 0:01:20]}  Rxe3 {[%clk 0:00:31]} 23. Qxe3 {[%clk 0:01:21]}  Qd2 {[%clk 0:00:29]} 24. Qe4 {[%clk 0:01:21]}  Qd5 {[%clk 0:00:26]} 25. Qe2 {[%clk 0:01:12]}  Qd2 {[%clk 0:00:25]} 26. Qe4 {[%clk 0:01:08]}  Qd5 {[%clk 0:00:25]} 27. Qe2 {[%clk 0:01:08]}  Qd2 {[%clk 0:00:24]} 28. Qe4 {[%clk 0:01:07]} 1/2-1/2


[Site "https://www.chess.com"]

[Event "Titled Tuesday Blitz July 05 Early 2022"]
[White "Timofeev, Artyom"]
[Black "Prokofiev, Valentyn"]
[WhiteFideId "4140419"]
[BlackFideId "14160161"]
[WhiteElo "2578"]
[BlackElo "2142"]
[Result "1-0"]
[Round "05"]
[TimeControl "180+1"]
[Date "2022.07.05"]
[WhiteClock "0:01:41"]
[BlackClock "0:01:30"]

1. e4 {[%clk 0:03:00]}  c5 {[%clk 0:02:59]} 2. Nc3 {[%clk 0:03:00]}  Nc6 {[%clk 0:02:57]} 3. Bb5 {[%clk 0:02:58]}  Nd4 {[%clk 0:02:49]} 4. Nf3 {[%clk 0:02:58]}  Nxb5 {[%clk 0:02:47]} 5. Nxb5 {[%clk 0:02:58]}  a6 {[%clk 0:02:46]} 6. Nc3 {[%clk 0:02:58]}  d6 {[%clk 0:02:43]} 7. d4 {[%clk 0:02:54]}  cxd4 {[%clk 0:02:43]} 8. Nxd4 {[%clk 0:02:54]}  Nf6 {[%clk 0:02:43]} 9. Bg5 {[%clk 0:02:52]}  e6 {[%clk 0:02:38]} 10. Qd3 {[%clk 0:02:47]}  Be7 {[%clk 0:02:37]} 11. O-O-O {[%clk 0:02:47]}  Bd7 {[%clk 0:02:35]} 12. f4 {[%clk 0:02:40]}  Qa5 {[%clk 0:02:34]} 13. Nb3 {[%clk 0:02:38]}  Qc7 {[%clk 0:02:15]} 14. e5 {[%clk 0:02:31]}  dxe5 {[%clk 0:02:15]} 15. fxe5 {[%clk 0:02:31]}  Nd5 {[%clk 0:02:16]} 16. Bxe7 {[%clk 0:02:26]}  Nxe7 {[%clk 0:02:16]} 17. Ne4 {[%clk 0:02:15]}  Nc8 {[%clk 0:02:05]} 18. Qg3 {[%clk 0:02:05]}  Kf8 {[%clk 0:01:44]} 19. Rhf1 {[%clk 0:02:04]}  Bb5 {[%clk 0:01:40]} 20. Rf4 {[%clk 0:01:47]}  Ne7 {[%clk 0:01:37]} 21. Nd6 {[%clk 0:01:46]}  Nf5 {[%clk 0:01:37]} 22. Nxf5 {[%clk 0:01:45]}  exf5 {[%clk 0:01:37]} 23. Rxf5 {[%clk 0:01:46]}  Rc8 {[%clk 0:01:38]} 24. Nd4 {[%clk 0:01:43]}  g6 {[%clk 0:01:30]} 25. Ne6+ {[%clk 0:01:41]} 1-0


[Site "https://www.chess.com"]

[Event "Titled Tuesday Blitz July 05 Early 2022"]
[White "Vakhlamov, Igor L."]
[Black "Leiva, Gianmarco"]
[WhiteFideId "24126748"]
[BlackFideId "3804399"]
[WhiteElo "2401"]
[BlackElo "2323"]
[Result "0-1"]
[Round "05"]
[TimeControl "180+1"]
[Date "2022.07.05"]
[WhiteClock "0:00:01"]
[BlackClock "0:00:46"]

1. e4 {[%clk 0:03:00]}  c5 {[%clk 0:02:57]} 2. Nf3 {[%clk 0:03:00]}  d6 {[%clk 0:02:58]} 3. Nc3 {[%clk 0:03:00]}  Nf6 {[%clk 0:02:56]} 4. d4 {[%clk 0:03:00]}  cxd4 {[%clk 0:02:57]} 5. Qxd4 {[%clk 0:03:01]}  a6 {[%clk 0:02:54]} 6. e5 {[%clk 0:03:00]}  Nc6 {[%clk 0:02:54]} 7. Qa4 {[%clk 0:03:01]}  dxe5 {[%clk 0:02:49]} 8. Nxe5 {[%clk 0:03:02]}  Bd7 {[%clk 0:02:49]} 9. Nxd7 {[%clk 0:03:02]}  Qxd7 {[%clk 0:02:50]} 10. Be3 {[%clk 0:02:55]}  e6 {[%clk 0:02:50]} 11. Rd1 {[%clk 0:02:55]}  Qc7 {[%clk 0:02:50]} 12. a3 {[%clk 0:02:41]}  Be7 {[%clk 0:02:47]} 13. Be2 {[%clk 0:02:09]}  O-O {[%clk 0:02:45]} 14. O-O {[%clk 0:02:07]}  Rac8 {[%clk 0:02:31]} 15. Qh4 {[%clk 0:02:05]}  Ne5 {[%clk 0:02:24]} 16. Bd4 {[%clk 0:01:36]}  Nc4 {[%clk 0:02:18]} 17. Ne4 {[%clk 0:01:36]}  e5 {[%clk 0:02:06]} 18. Bc3 {[%clk 0:01:16]}  Nd5 {[%clk 0:02:05]} 19. Qg3 {[%clk 0:01:00]}  Nf4 {[%clk 0:02:06]} 20. Bd3 {[%clk 0:00:43]}  Rfd8 {[%clk 0:01:59]} 21. Rde1 {[%clk 0:00:41]}  f6 {[%clk 0:01:54]} 22. Qf3 {[%clk 0:00:33]}  Nd5 {[%clk 0:01:15]} 23. Qh3 {[%clk 0:00:25]}  Qd7 {[%clk 0:01:16]} 24. Qh5 {[%clk 0:00:23]}  Nf4 {[%clk 0:01:14]} 25. Nxf6+ {[%clk 0:00:14]}  Bxf6 {[%clk 0:01:07]} 26. Qxh7+ {[%clk 0:00:14]}  Kf7 {[%clk 0:01:06]} 27. Bxc4+ {[%clk 0:00:13]}  Rxc4 {[%clk 0:01:02]} 28. Bxe5 {[%clk 0:00:14]}  Bxe5 {[%clk 0:00:52]} 29. Rxe5 {[%clk 0:00:15]}  Ng6 {[%clk 0:00:53]} 30. Rg5 {[%clk 0:00:13]}  Qe6 {[%clk 0:00:49]} 31. f4 {[%clk 0:00:07]}  Rh8 {[%clk 0:00:48]} 32. Rxg6 {[%clk 0:00:01]}  Qe3+ {[%clk 0:00:46]} 0-1


[Site "https://www.chess.com"]

[Event "Titled Tuesday Blitz July 05 Early 2022"]
[White "Bortnyk, Olexandr"]
[Black "Jones, Gawain C B"]
[WhiteFideId "14120828"]
[BlackFideId "409561"]
[WhiteElo "2723"]
[BlackElo "2657"]
[Result "1-0"]
[Round "06"]
[TimeControl "180+1"]
[Date "2022.07.05"]
[WhiteClock "0:00:08"]
[BlackClock "0:00:53"]

1. d4 {[%clk 0:03:00]}  Nf6 {[%clk 0:02:59]} 2. Nc3 {[%clk 0:03:01]}  d5 {[%clk 0:02:59]} 3. Bf4 {[%clk 0:03:00]}  g6 {[%clk 0:02:59]} 4. e3 {[%clk 0:03:00]}  Bg7 {[%clk 0:02:59]} 5. h4 {[%clk 0:03:01]}  h5 {[%clk 0:02:59]} 6. Nb5 {[%clk 0:03:01]}  Na6 {[%clk 0:02:59]} 7. Nf3 {[%clk 0:03:01]}  O-O {[%clk 0:02:58]} 8. Ne5 {[%clk 0:03:01]}  c6 {[%clk 0:02:50]} 9. Nc3 {[%clk 0:03:00]}  Nb8 {[%clk 0:02:50]} 10. Be2 {[%clk 0:02:58]}  Nbd7 {[%clk 0:02:49]} 11. Nd3 {[%clk 0:02:58]}  Ne4 {[%clk 0:02:44]} 12. g4 {[%clk 0:02:07]}  Nxc3 {[%clk 0:02:43]} 13. bxc3 {[%clk 0:02:06]}  hxg4 {[%clk 0:02:43]} 14. Bxg4 {[%clk 0:02:07]}  Qa5 {[%clk 0:02:36]} 15. h5 {[%clk 0:02:04]}  Qxc3+ {[%clk 0:02:35]} 16. Kf1 {[%clk 0:02:05]}  Nf6 {[%clk 0:02:31]} 17. Bxc8 {[%clk 0:01:29]}  Raxc8 {[%clk 0:02:29]} 18. Kg2 {[%clk 0:01:30]}  Nxh5 {[%clk 0:02:18]} 19. Rxh5 {[%clk 0:01:28]}  gxh5 {[%clk 0:02:18]} 20. Rc1 {[%clk 0:01:07]}  c5 {[%clk 0:01:58]} 21. Qxh5 {[%clk 0:01:03]}  Rc6 {[%clk 0:01:58]} 22. Rh1 {[%clk 0:00:33]}  Rd8 {[%clk 0:01:47]} 23. Ne5 {[%clk 0:00:19]}  Rf6 {[%clk 0:01:32]} 24. Bg5 {[%clk 0:00:13]}  Rxf2+ {[%clk 0:01:05]} 25. Kxf2 {[%clk 0:00:13]}  Qxc2+ {[%clk 0:01:05]} 26. Kg3 {[%clk 0:00:11]}  Qf5 {[%clk 0:01:01]} 27. Bxe7 {[%clk 0:00:08]}  Bxe5+ {[%clk 0:00:53]} 28. dxe5 {[%clk 0:00:08]} 1-0


[Site "https://www.chess.com"]

[Event "Titled Tuesday Blitz July 05 Early 2022"]
[White "Domingo Nunez, Ruben"]
[Black "Sjugirov, Sanan"]
[WhiteFideId "22245570"]
[BlackFideId "4189302"]
[WhiteElo "2373"]
[BlackElo "2609"]
[Result "0-1"]
[Round "06"]
[TimeControl "180+1"]
[Date "2022.07.05"]
[WhiteClock "0:00:10"]
[BlackClock "0:01:03"]

1. c4 {[%clk 0:02:58]}  c6 {[%clk 0:03:00]} 2. b3 {[%clk 0:02:55]}  d5 {[%clk 0:03:01]} 3. Bb2 {[%clk 0:02:56]}  Nf6 {[%clk 0:03:01]} 4. Nf3 {[%clk 0:02:56]}  Bg4 {[%clk 0:03:00]} 5. e3 {[%clk 0:02:56]}  e6 {[%clk 0:03:00]} 6. Be2 {[%clk 0:02:56]}  Nbd7 {[%clk 0:03:00]} 7. O-O {[%clk 0:02:57]}  Bd6 {[%clk 0:03:00]} 8. Nc3 {[%clk 0:02:57]}  O-O {[%clk 0:03:00]} 9. Rc1 {[%clk 0:02:58]}  Qe7 {[%clk 0:02:59]} 10. Qc2 {[%clk 0:02:58]}  Rac8 {[%clk 0:02:57]} 11. h3 {[%clk 0:02:58]}  Bf5 {[%clk 0:02:56]} 12. Bd3 {[%clk 0:02:54]}  Bxd3 {[%clk 0:02:52]} 13. Qxd3 {[%clk 0:02:55]}  a6 {[%clk 0:02:49]} 14. Qe2 {[%clk 0:02:39]}  Bb8 {[%clk 0:02:49]} 15. e4 {[%clk 0:02:38]}  dxc4 {[%clk 0:02:45]} 16. e5 {[%clk 0:02:34]}  Nd5 {[%clk 0:02:45]} 17. bxc4 {[%clk 0:02:32]}  Nf4 {[%clk 0:02:42]} 18. Qe4 {[%clk 0:02:32]}  Ng6 {[%clk 0:02:39]} 19. Rfe1 {[%clk 0:02:27]}  Ndxe5 {[%clk 0:02:31]} 20. Nxe5 {[%clk 0:02:21]}  Bxe5 {[%clk 0:02:32]} 21. d4 {[%clk 0:02:22]}  Bf4 {[%clk 0:02:29]} 22. Rcd1 {[%clk 0:02:22]}  Qb4 {[%clk 0:02:27]} 23. Qe2 {[%clk 0:02:16]}  Rfd8 {[%clk 0:02:20]} 24. Ba1 {[%clk 0:02:11]}  b5 {[%clk 0:02:19]} 25. g3 {[%clk 0:02:04]}  Bb8 {[%clk 0:02:18]} 26. d5 {[%clk 0:01:47]}  cxd5 {[%clk 0:02:16]} 27. cxd5 {[%clk 0:01:47]}  e5 {[%clk 0:02:15]} 28. Ne4 {[%clk 0:01:39]}  Qe7 {[%clk 0:02:14]} 29. Qg4 {[%clk 0:01:34]}  Rc4 {[%clk 0:02:11]} 30. h4 {[%clk 0:01:33]}  Qd7 {[%clk 0:02:07]} 31. Qh5 {[%clk 0:01:33]}  f6 {[%clk 0:02:04]} 32. Qf3 {[%clk 0:01:25]}  Bd6 {[%clk 0:02:01]} 33. h5 {[%clk 0:01:23]}  Ne7 {[%clk 0:02:01]} 34. h6 {[%clk 0:01:20]}  Qf5 {[%clk 0:02:02]} 35. Qh1 {[%clk 0:01:15]}  Bb4 {[%clk 0:01:58]} 36. d6 {[%clk 0:01:08]}  Ng6 {[%clk 0:01:54]} 37. Re3 {[%clk 0:00:57]}  Qg4 {[%clk 0:01:40]} 38. f3 {[%clk 0:00:29]}  Qe6 {[%clk 0:01:39]} 39. hxg7 {[%clk 0:00:29]}  Kxg7 {[%clk 0:01:39]} 40. Red3 {[%clk 0:00:22]}  Bc5+ {[%clk 0:01:33]} 41. Kg2 {[%clk 0:00:20]}  Rc2+ {[%clk 0:01:32]} 42. R1d2 {[%clk 0:00:21]}  Rxd2+ {[%clk 0:01:33]} 43. Rxd2 {[%clk 0:00:22]}  Bb4 {[%clk 0:01:32]} 44. Rc2 {[%clk 0:00:21]}  Bxd6 {[%clk 0:01:31]} 45. Rc6 {[%clk 0:00:20]}  Qxa2+ {[%clk 0:01:31]} 46. Kh3 {[%clk 0:00:20]}  Be7 {[%clk 0:01:28]} 47. Kg4 {[%clk 0:00:14]}  Qd5 {[%clk 0:01:08]} 48. Nxf6 {[%clk 0:00:13]}  Bxf6 {[%clk 0:01:06]} 49. Rxf6 {[%clk 0:00:10]}  Kxf6 {[%clk 0:01:04]} 50. f4 {[%clk 0:00:10]}  Qxh1 {[%clk 0:01:03]} 0-1


[Site "https://www.chess.com"]